fUSD/lending_fUSD_20250502
["ID","MTS","AMOUNT","RATE_DAILY","PERIOD"]
[359617084,1746185445753,-578.55,0.00019783,2]
[359617086,1746185445763,-450.0,0.00019783,2]
[359617088,1746185445772,-450.0,0.00019783,2]
[359617090,1746185445782,-926.24,0.00019783,2]
[359617092,1746185445794,-450.0,0.00019783,2]
[359617094,1746185445803,-776.39,0.00019783,2]
[359617096,1746185445812,-7119.0,0.00019783,2]
[359617098,1746185445822,-722.36,0.00019783,2]
[359617100,1746185445830,-595.99,0.00019783,2]
[359617102,1746185445840,-450.0,0.00019783,2]
[359617104,1746185445851,-450.0,0.00019783,2]
[359617106,1746185445860,-1307.78,0.00019783,2]
[359617108,1746185445870,-450.0,0.00019783,2]
[359617110,1746185445879,-450.0,0.00019783,2]
[359617112,1746185445888,-7239.66,0.00019783,2]
[359617114,1746185445897,-1095.42,0.00019783,2]
[359617116,1746185445907,-608.68,0.00019783,2]
[359617118,1746185445916,-728.05,0.00019783,2]
[359617120,1746185445925,-450.0,0.00019783,2]
[359617122,1746185445934,-466.47,0.00019783,2]
[359617124,1746185445943,-450.0,0.00019783,2]
[359617126,1746185445953,-450.0,0.00019783,2]
[359617128,1746185445962,-450.0,0.00019783,2]
[359617129,1746185445971,-6898.19,0.00019783,2]
[359617131,1746185445981,-1136.53,0.00019783,2]
[359617133,1746185445991,-698.99,0.00019783,2]
[359617135,1746185446001,-477.06,0.00019783,2]
[359617137,1746185446010,-450.0,0.00019783,2]
[359617139,1746185446019,-180039.38,0.00019783,2]
[359617141,1746185446029,-450.0,0.00019783,2]
[359617143,1746185446038,-809.12,0.00019783,2]
[359617145,1746185446048,-538.8532877,0.00019783,2]
[359617147,1746185446057,-450.0,0.00019783,2]
[359617149,1746185446066,-450.0,0.00019783,2]
[359617151,1746185446076,-769.64,0.00019783,2]
[359617153,1746185446085,-931.1,0.00019783,2]
[359617155,1746185446094,-450.0,0.00019783,2]
[359617157,1746185446103,-450.0,0.00019783,2]
[359617159,1746185446112,-450.0,0.00019783,2]
[359617161,1746185446122,-450.0,0.00019783,2]
[359617163,1746185446131,-450.0,0.00019783,2]
[359617165,1746185446140,-450.0,0.00019783,2]
[359617167,1746185446149,-827.6,0.00019783,2]
[359617169,1746185446159,-1340.03,0.00019783,2]
[359617171,1746185446167,-450.0,0.00019783,2]
[359617172,1746185446177,-450.0,0.00019783,2]
[359617174,1746185446187,-628.97,0.00019783,2]
[359617176,1746185446196,-1026.07,0.00019783,2]
[359617178,1746185446205,-450.0,0.00019783,2]
[359617180,1746185446215,-7117.32,0.00019783,2]
[359617182,1746185446224,-450.0,0.00019783,2]
[359617184,1746185446234,-790.14,0.00019783,2]
[359617186,1746185446243,-450.0,0.00019783,2]
[359617188,1746185446253,-10383.58,0.00019783,2]
[359617190,1746185446262,-567.61,0.00019783,2]
[359617192,1746185446271,-585.17,0.00019783,2]
[359617194,1746185446280,-135275.03,0.00019783,2]
[359617196,1746185446290,-384.03837964,0.00019783,2]
[359617198,1746185446299,-450.0,0.00019783,2]
[359617200,1746185446309,-450.0,0.00019783,2]
[359617201,1746185446318,-450.0,0.00019783,2]
[359617203,1746185446327,-536.43,0.00019783,2]
[359617205,1746185446337,-450.0,0.00019783,2]
[359617207,1746185446347,-1192.1,0.00019783,2]
[359617209,1746185446356,-460.97,0.00019783,2]
[359617211,1746185446366,-469.18819846,0.00019783,2]
[359617213,1746185446375,-450.0,0.00019783,2]
[359617215,1746185446384,-450.0,0.00019783,2]
[359617217,1746185446393,-450.0,0.00019783,2]
[359617219,1746185446402,-698.8,0.00019783,2]
[359617221,1746185446411,-7406.93,0.00019783,2]
[359617223,1746185446420,-450.0,0.00019783,2]
[359617225,1746185446429,-2181.78,0.00019783,2]
[359617227,1746185446438,-829.69,0.00019783,2]
[359617229,1746185446447,-1039.35,0.00019783,2]
[359617231,1746185446457,-450.0,0.00019783,2]
[359617233,1746185446466,-450.0,0.00019783,2]
[359617235,1746185446477,-879.06,0.00019783,2]
[359617237,1746185446487,-1485.32,0.00019783,2]
[359617239,1746185446496,-275.38270054,0.00019783,2]
[359617240,1746185446506,-148554.34044384,0.00019783,2]
[359617242,1746185446515,-450.0,0.00019784,2]
[359617244,1746185446526,-536.28908272,0.00019784,2]
[359617246,1746185446535,-450.0,0.00019784,2]
[359617248,1746185446545,-450.0,0.00019784,2]
[359617250,1746185446556,-450.0,0.00019784,2]
[359617252,1746185446565,-251.89240534,0.00019784,2]
[359617254,1746185446575,-450.0,0.00019784,2]
[359617256,1746185446584,-460.21,0.00019784,2]
[359617258,1746185446593,-450.0,0.00019784,2]
[359617260,1746185446602,-450.0,0.00019784,2]
[359617262,1746185446612,-450.0,0.00019784,2]
[359617264,1746185446621,-450.0,0.00019784,2]
[359617266,1746185446631,-450.0,0.00019784,2]
[359617268,1746185446639,-300.0,0.00019784,2]
[359617270,1746185446649,-450.0,0.00019784,2]
[359617272,1746185446659,-450.0,0.00019784,2]
[359617274,1746185446668,-708.22,0.00019784,2]
[359617276,1746185446677,-1535.93,0.00019784,2]
[359617278,1746185446687,-450.0,0.00019784,2]
[359617280,1746185446696,-879.5,0.00019784,2]
[359617282,1746185446705,-450.0,0.00019784,2]
[359617284,1746185446715,-450.0,0.00019784,2]
[359617286,1746185446724,-224.37007143,0.00019784,2]
[359617287,1746185446735,-450.0,0.00019784,2]
[359617290,1746185446746,-450.0,0.00019784,2]
[359617291,1746185446757,-450.0,0.00019784,2]
[359617293,1746185446766,-450.0,0.00019784,2]
[359617295,1746185446776,-450.0,0.00019784,2]
[359617297,1746185446785,-450.0,0.00019784,2]
[359617299,1746185446794,-450.0,0.00019784,2]
[359617301,1746185446804,-450.0,0.00019784,2]
[359617303,1746185446813,-460.4,0.00019784,2]
[359617305,1746185446822,-450.0,0.00019784,2]
[359617307,1746185446831,-324.92097776,0.00019784,2]
[359617309,1746185446840,-700.3,0.00019784,2]
[359617311,1746185446849,-450.0,0.00019784,2]
[359617313,1746185446859,-1199.54,0.00019784,2]
[359617315,1746185446868,-256.09056008,0.00019784,2]
[359617317,1746185446877,-450.0,0.00019784,2]
[359617319,1746185446886,-450.0,0.00019784,2]
[359617321,1746185446895,-450.0,0.00019784,2]
[359617323,1746185446904,-450.0,0.00019784,2]
[359617325,1746185446913,-151.0,0.00019784,2]
[359617327,1746185446922,-151.0,0.00019784,2]
[359617329,1746185446931,-450.0,0.00019784,2]
[359617331,1746185446940,-450.0,0.00019784,2]
[359617332,1746185446950,-151.88436413,0.00019784,2]
[359617334,1746185446959,-450.0,0.00019784,2]
[359617336,1746185446969,-450.0,0.00019784,2]
[359617338,1746185446979,-450.0,0.00019784,2]
[359617340,1746185446988,-552.74,0.00019784,2]
[359617342,1746185446997,-323.77490878,0.00019784,2]
[359617344,1746185447007,-450.0,0.00019784,2]
[359617346,1746185447016,-450.0,0.00019784,2]
[359617348,1746185447026,-450.0,0.00019784,2]
[359617350,1746185447035,-450.0,0.00019784,2]
[359617352,1746185447045,-3363.72,0.00019784,2]
[359617354,1746185447054,-450.0,0.00019784,2]
[359617356,1746185447066,-151.0,0.00019784,2]
[359617358,1746185447077,-450.0,0.00019784,2]
[359617360,1746185447087,-412.51607936,0.00019784,2]
[359617362,1746185447097,-450.0,0.00019784,2]
[359617364,1746185447106,-583.24,0.00019784,2]
[359617366,1746185447116,-450.0,0.00019784,2]
[359617368,1746185447126,-450.0,0.00019784,2]
[359617370,1746185447135,-644.01,0.00019784,2]
[359617372,1746185447144,-450.0,0.00019784,2]
[359617374,1746185447154,-450.0,0.00019784,2]
[359617376,1746185447163,-594.16443873,0.00019784,2]
[359617378,1746185447172,-531.9,0.00019784,2]
[359617380,1746185447181,-450.0,0.00019784,2]
[359617382,1746185447191,-151.0,0.00019784,2]
[359617384,1746185447200,-1592.51,0.00019784,2]
[359617386,1746185447210,-479.58,0.00019784,2]
[359617388,1746185447219,-450.0,0.00019784,2]
[359617390,1746185447228,-406.208105,0.00019784,2]
[359617392,1746185447238,-450.0,0.00019784,2]
[359617394,1746185447247,-450.0,0.00019784,2]
[359617396,1746185447257,-450.0,0.00019784,2]
[359617398,1746185447267,-381.4329168,0.00019784,2]
[359617400,1746185447276,-580.75,0.00019784,2]
[359617402,1746185447285,-151.0,0.00019784,2]
[359617404,1746185447295,-450.0,0.00019784,2]
[359617406,1746185447304,-151.0,0.00019784,2]
[359617408,1746185447313,-506.91236847,0.00019784,2]
[359617410,1746185447322,-450.0,0.00019784,2]
[359617412,1746185447332,-1023.25,0.00019784,2]
[359617414,1746185447340,-537.146011,0.00019784,2]
[359617416,1746185447349,-465.04,0.00019784,2]
[359617418,1746185447357,-537.146011,0.00019784,2]
[359617420,1746185447366,-151.0,0.00019784,2]
[359617422,1746185447375,-290.7508044,0.00019784,2]
[359617424,1746185447384,-933.9,0.00019784,2]
[359617426,1746185447393,-1245.15,0.00019784,2]
[359617428,1746185447402,-450.0,0.00019784,2]
[359617430,1746185447411,-643.85,0.00019784,2]
[359617432,1746185447419,-1633.73,0.00019784,2]
[359617434,1746185447429,-479.91,0.00019784,2]
[359617436,1746185447438,-450.0,0.00019784,2]
[359617438,1746185447447,-721.63,0.00019784,2]
[359617439,1746185447456,-1546.7,0.00019784,2]
[359617441,1746185447466,-727.05,0.00019784,2]
[359617444,1746185447479,-290.354684,0.00019784,2]
[359617446,1746185447489,-290.354684,0.00019784,2]
[359617447,1746185447499,-348.49260168,0.00019784,2]
[359617449,1746185447508,-1961.02,0.00019784,2]
[359617451,1746185447518,-549.31,0.00019784,2]
[359617453,1746185447526,-802.52,0.00019784,2]
[359617455,1746185447536,-450.0,0.00019784,2]
[359617457,1746185447545,-477.2,0.00019784,2]
[359617459,1746185447555,-470.55,0.00019784,2]
[359617461,1746185447565,-151.0,0.00019784,2]
[359617463,1746185447574,-450.0,0.00019784,2]
[359617465,1746185447583,-469.16,0.00019784,2]
[359617467,1746185447593,-450.0,0.00019784,2]
[359617469,1746185447602,-450.0,0.00019784,2]
[359617471,1746185447612,-178.701838,0.00019784,2]
[359617473,1746185447621,-450.0,0.00019784,2]
[359617475,1746185447630,-152.551244,0.00019784,2]
[359617478,1746185447640,-2410.04,0.00019784,2]
[359617480,1746185447650,-450.0,0.00019784,2]
[359617482,1746185447660,-450.0,0.00019784,2]
[359617484,1746185447669,-643.01,0.00019784,2]
[359617486,1746185447679,-634.84,0.00019784,2]
[359617488,1746185447689,-151.0,0.00019784,2]
[359617489,1746185447698,-3353.89,0.00019784,2]
[359617491,1746185447707,-151.0,0.00019784,2]
[359617494,1746185447717,-501.66,0.00019784,2]
[359617496,1746185447728,-530.14,0.00019784,2]
[359617498,1746185447738,-1469.42,0.00019784,2]
[359617500,1746185447747,-786.51,0.00019784,2]
[359617502,1746185447756,-450.0,0.00019784,2]
[359617504,1746185447766,-151.0,0.00019784,2]
[359617506,1746185447776,-151.0,0.00019784,2]
[359617508,1746185447786,-450.0,0.00019784,2]
[359617510,1746185447795,-3063.13,0.00019784,2]
[359617512,1746185447805,-807.75,0.00019784,2]
[359617514,1746185447814,-151.0,0.00019784,2]
[359617516,1746185447824,-450.0,0.00019784,2]
[359617518,1746185447834,-602.95,0.00019784,2]
[359617520,1746185447843,-439.488984,0.00019784,2]
[359617522,1746185447853,-151.0,0.00019784,2]
[359617524,1746185447862,-1219.18,0.00019784,2]
[359617526,1746185447872,-356.892083,0.00019784,2]
[359617527,1746185447883,-151.0,0.00019784,2]
[359617528,1746185447893,-1020.86,0.00019784,2]
[359617529,1746185447902,-1021.67,0.00019784,2]
[359617530,1746185447912,-356.892083,0.00019784,2]
[359617531,1746185447922,-151.0,0.00019784,2]
[359617533,1746185447931,-151.0,0.00019784,2]
[359617535,1746185447941,-527.86,0.00019784,2]
[359617537,1746185447951,-450.0,0.00019784,2]
[359617539,1746185447961,-450.0,0.00019784,2]
[359617541,1746185447971,-151.0,0.00019784,2]
[359617543,1746185447981,-450.0,0.00019784,2]
[359617545,1746185447991,-988.42,0.00019784,2]
[359617548,1746185448001,-807.75,0.00019784,2]
[359617549,1746185448011,-805.1,0.00019784,2]
[359617551,1746185448021,-536.38,0.00019784,2]
[359617553,1746185448031,-151.0,0.00019784,2]
[359617555,1746185448040,-152.009499,0.00019784,2]
[359617557,1746185448051,-153.738796,0.00019784,2]
[359617559,1746185448060,-997.54,0.00019784,2]
[359617561,1746185448070,-151.0,0.00019784,2]
[359617563,1746185448081,-151.0,0.00019784,2]
[359617565,1746185448091,-151.0,0.00019784,2]
[359617567,1746185448101,-450.0,0.00019784,2]
[359617569,1746185448112,-151.0,0.00019784,2]
[359617571,1746185448123,-734.88,0.00019784,2]
[359617573,1746185448134,-151.0,0.00019784,2]
[359617575,1746185448145,-162.64088,0.00019784,2]
[359617577,1746185448156,-1654.15,0.00019784,2]
[359617579,1746185448167,-450.0,0.00019784,2]
[359617581,1746185448180,-151.0,0.00019784,2]
[359617583,1746185448191,-151.0,0.00019784,2]
[359617585,1746185448202,-860.1,0.00019784,2]
[359617588,1746185448213,-2164.47,0.00019784,2]
[359617590,1746185448223,-450.0,0.00019784,2]
[359617592,1746185448232,-151.0,0.00019784,2]
[359617594,1746185448242,-450.0,0.00019784,2]
[359617596,1746185448251,-746.63,0.00019784,2]
[359617598,1746185448261,-813.41,0.00019784,2]
[359617600,1746185448271,-151.0,0.00019784,2]
[359617602,1746185448282,-450.0,0.00019784,2]
[359617604,1746185448292,-875.93,0.00019784,2]
[359617606,1746185448302,-2552.29,0.00019784,2]
[359617608,1746185448311,-804.28,0.00019784,2]
[359617610,1746185448321,-1085.91,0.00019784,2]
[359617612,1746185448330,-450.0,0.00019784,2]
[359617614,1746185448341,-200.0,0.00019785,2]
[359617616,1746185448351,-153.410582,0.00019785,2]
[359617618,1746185448361,-151.0,0.00019785,2]
[359617620,1746185448371,-266.93514752,0.00019785,2]
[359617622,1746185448382,-1000.0,0.00019785,2]
[359617624,1746185448392,-1000.0,0.00019785,2]
[359617626,1746185448401,-1000.0,0.00019785,2]
[359617628,1746185448411,-1000.0,0.00019785,2]
[359617631,1746185448421,-1000.0,0.00019785,2]
[359617633,1746185448431,-1000.0,0.00019785,2]
[359617635,1746185448440,-1000.0,0.00019785,2]
[359617637,1746185448449,-1000.0,0.00019785,2]
[359617639,1746185448459,-1000.0,0.00019785,2]
[359617641,1746185448468,-1000.0,0.00019785,2]
[359617643,1746185448482,-1000.0,0.00019785,2]
[359617645,1746185448492,-1000.0,0.00019785,2]
[359617647,1746185448502,-1000.0,0.00019785,2]
[359617649,1746185448513,-1000.0,0.00019785,2]
[359617651,1746185448523,-1000.0,0.00019785,2]
[359617653,1746185448532,-1000.0,0.00019785,2]
[359617655,1746185448542,-1000.0,0.00019785,2]
[359617657,1746185448552,-1000.0,0.00019785,2]
[359617659,1746185448562,-1000.0,0.00019785,2]
[359617661,1746185448572,-1000.0,0.00019785,2]
[359617663,1746185448582,-1000.0,0.00019785,2]
[359617665,1746185448592,-1000.0,0.00019785,2]
[359617667,1746185448603,-1000.0,0.00019785,2]
[359617669,1746185448613,-421.88,0.00019785,2]
[359617671,1746185448623,-258.872243,0.00019785,2]
[359617673,1746185448633,-151.0,0.00019785,2]
[359617675,1746185448643,-151.0,0.00019785,2]
[359617677,1746185448653,-493.567792,0.00019785,2]
[359617679,1746185448663,-493.567792,0.00019785,2]
[359617682,1746185448673,-167.85162715,0.00019792,2]
[359617683,1746185448683,-157.0489496,0.00019799,2]
[359617686,1746185448693,-243.0829256,0.00019801,2]
[359617688,1746185448703,-1395.00907877,0.00019804,2]
[359617690,1746185448714,-500.0,0.00019808,2]
[359617692,1746185448724,-12500.0,0.00019821,2]
[359617694,1746185448734,-1395.00907877,0.00019828,2]
[359617696,1746185448744,-12500.0,0.0001983,2]
[359617698,1746185448754,-151.0,0.0001983,2]
[359617700,1746185448764,-153.70612,0.0001983,2]
[359617702,1746185448774,-406.208105,0.0001983,2]
[359617704,1746185448784,-151.0,0.0001983,2]
[359617706,1746185448794,-537.146011,0.0001983,2]
[359617708,1746185448804,-537.146011,0.0001983,2]
[359617710,1746185448814,-152.187598,0.0001983,2]
[359617712,1746185448825,-290.354684,0.0001983,2]
[359617714,1746185448835,-290.354684,0.0001983,2]
[359617716,1746185448845,-151.0,0.0001983,2]
[359617718,1746185448855,-151.0,0.0001983,2]
[359617720,1746185448866,-151.0,0.0001983,2]
[359617722,1746185448875,-343.058846,0.0001983,2]
[359617725,1746185448885,-343.058846,0.0001983,2]
[359617727,1746185448896,-748.339038,0.0001983,2]
[359617729,1746185448907,-748.339038,0.0001983,2]
[359617731,1746185448917,-151.0,0.0001983,2]
[359617733,1746185448927,-151.0,0.0001983,2]
[359617735,1746185448937,-203.934156,0.0001983,2]
[359617737,1746185448947,-203.934156,0.0001983,2]
[359617739,1746185448958,-151.0,0.0001983,2]
[359617740,1746185448968,-151.0,0.0001983,2]
[359617743,1746185448979,-151.0,0.0001983,2]
[359617745,1746185448990,-151.0,0.0001983,2]
[359617747,1746185449000,-151.0,0.0001983,2]
[359617749,1746185449011,-151.0,0.0001983,2]
[359617751,1746185449021,-151.0,0.0001983,2]
[359617753,1746185449031,-151.0,0.0001983,2]
[359617755,1746185449041,-151.0,0.0001983,2]
[359617757,1746185449052,-151.0,0.0001983,2]
[359617759,1746185449062,-425.162712,0.0001983,2]
[359617761,1746185449073,-425.162712,0.0001983,2]
[359617763,1746185449083,-151.0,0.00019838,2]
[359617765,1746185449093,-151.0,0.00019838,2]
[359617767,1746185449102,-151.0,0.00019838,2]
[359617769,1746185449112,-1243.857097,0.00019838,2]
[359617771,1746185449121,-328.260719,0.00019838,2]
[359617773,1746185449131,-1243.857097,0.00019838,2]
[359617775,1746185449140,-328.260719,0.00019838,2]
[359617777,1746185449150,-154.701823,0.00019838,2]
[359617779,1746185449160,-151.0,0.00019838,2]
[359617781,1746185449170,-151.0,0.00019838,2]
[359617783,1746185449180,-151.0,0.00019838,2]
[359617785,1746185449190,-151.0,0.00019838,2]
[359617787,1746185449199,-151.0,0.00019838,2]
[359617789,1746185449210,-151.0,0.00019838,2]
[359617791,1746185449219,-12500.0,0.00019838,2]
[359617794,1746185449229,-167.85162715,0.00019846,2]
[359617796,1746185449239,-150.0,0.00019846,2]
[359617798,1746185449249,-243.0829256,0.00019846,2]
[359617800,1746185449260,-151.0,0.00019847,2]
[359617802,1746185449270,-356.892083,0.00019847,2]
[359617804,1746185449279,-356.892083,0.00019847,2]
[359617806,1746185449289,-151.0,0.00019847,2]
[359617808,1746185449300,-169.329822,0.00019847,2]
[359617810,1746185449311,-151.0,0.00019847,2]
[359617812,1746185449321,-150.0,0.00019847,2]
[359617814,1746185449331,-151.0,0.00019847,2]
[359617816,1746185449341,-151.0,0.00019847,2]
[359617818,1746185449351,-151.0,0.00019847,2]
[359617820,1746185449362,-12500.0,0.00019847,2]
[359617822,1746185449372,-1395.00907877,0.00019852,2]
[359617824,1746185449382,-151.0,0.00019852,2]
[359617826,1746185449392,-151.0,0.00019852,2]
[359617828,1746185449403,-154.177918,0.00019852,2]
[359617830,1746185449412,-154.177918,0.00019852,2]
[359617832,1746185449422,-151.0,0.00019852,2]
[359617835,1746185449433,-239.78686,0.00019852,2]
[359617837,1746185449443,-151.0,0.00019852,2]
[359617839,1746185449453,-178.701838,0.00019852,2]
[359617841,1746185449464,-171.380279,0.00019852,2]
[359617843,1746185449476,-576.0,0.00019855,2]
[359617845,1746185449489,-325.67846423,0.00019855,2]
[359617847,1746185449500,-151.0,0.00019855,2]
[359617849,1746185449510,-151.0,0.00019855,2]
[359617851,1746185449521,-151.0,0.00019855,2]
[359617853,1746185449532,-356.892083,0.00019855,2]
[359617855,1746185449542,-151.0,0.00019855,2]
[359617857,1746185449552,-356.892083,0.00019855,2]
[359617860,1746185449563,-151.0,0.00019855,2]
[359617862,1746185449573,-420.335561,0.00019855,2]
[359617864,1746185449583,-151.0,0.00019855,2]
[359617866,1746185449593,-267.87206048,0.00019855,2]
[359617868,1746185449602,-151.0,0.00019855,2]
[359617870,1746185449613,-151.0,0.00019855,2]
[359617872,1746185449623,-151.0,0.00019855,2]
[359617874,1746185449633,-2486.12,0.00019855,2]
[359617876,1746185449643,-21073.99,0.00019855,2]
[359617878,1746185449652,-151.0,0.00019855,2]
[359617880,1746185449662,-203.04182,0.00019855,2]
[359617882,1746185449673,-151.0,0.00019855,2]
[359617884,1746185449683,-151.0,0.00019855,2]
[359617886,1746185449692,-156.41273,0.00019855,2]
[359617888,1746185449702,-343.058846,0.00019855,2]
[359617890,1746185449712,-343.058846,0.00019855,2]
[359617892,1746185449723,-748.339038,0.00019855,2]
[359617894,1746185449733,-151.0,0.00019855,2]
[359617896,1746185449743,-748.339038,0.00019855,2]
[359617898,1746185449753,-168.606648,0.00019855,2]
[359617901,1746185449764,-151.0,0.00019855,2]
[359617903,1746185449776,-151.0,0.00019855,2]
[359617905,1746185449786,-151.0,0.00019855,2]
[359617907,1746185449795,-203.934156,0.00019855,2]
[359617909,1746185449805,-203.934156,0.00019855,2]
[359617911,1746185449816,-151.0,0.00019855,2]
[359617913,1746185449826,-248.314913,0.00019855,2]
[359617915,1746185449836,-151.0,0.00019855,2]
[359617917,1746185449846,-151.0,0.00019855,2]
[359617919,1746185449855,-151.0,0.00019855,2]
[359617921,1746185449865,-151.0,0.00019855,2]
[359617923,1746185449875,-151.0,0.00019855,2]
[359617925,1746185449885,-151.0,0.00019855,2]
[359617927,1746185449895,-151.0,0.00019855,2]
[359617929,1746185449905,-151.0,0.00019855,2]
[359617931,1746185449915,-267.804868,0.00019855,2]
[359617933,1746185449925,-425.162712,0.00019855,2]
[359617935,1746185449935,-425.162712,0.00019855,2]
[359617937,1746185449946,-151.0,0.00019855,2]
[359617940,1746185449956,-493.567792,0.00019855,2]
[359617942,1746185449966,-151.0,0.00019856,2]
[359617944,1746185449976,-12500.0,0.00019856,2]
[359617946,1746185449987,-12500.0,0.00019865,2]
[359617948,1746185449997,-12500.0,0.00019865,2]
[359617950,1746185450008,-12500.0,0.00019874,2]
[359617952,1746185450018,-12500.0,0.00019874,2]
[359617954,1746185450029,-1395.00907877,0.00019876,2]
[359617956,1746185450039,-151.0,0.00019876,2]
[359617958,1746185450049,-151.0,0.00019876,2]
[359617960,1746185450060,-151.0,0.00019876,2]
[359617962,1746185450070,-151.0,0.00019876,2]
[359617964,1746185450079,-439.488984,0.00019876,2]
[359617966,1746185450089,-151.0,0.00019876,2]
[359617968,1746185450099,-204.240884,0.00019882,2]
[359617970,1746185450109,-151.0,0.00019882,2]
[359617972,1746185450118,-493.567792,0.00019882,2]
[359617974,1746185450128,-12500.0,0.00019882,2]
[359617976,1746185450138,-12500.0,0.00019882,2]
[359617978,1746185450148,-177.130422,0.00019891,2]
[359617980,1746185450158,-172.578937,0.00019891,2]
[359617983,1746185450167,-151.0,0.00019891,2]
[359617985,1746185450178,-151.0,0.00019891,2]
[359617986,1746185450188,-343.058846,0.00019891,2]
[359617988,1746185450197,-343.058846,0.00019891,2]
[359617990,1746185450207,-748.339038,0.00019891,2]
[359617993,1746185450217,-151.0,0.00019891,2]
[359617995,1746185450227,-748.339038,0.00019891,2]
[359617997,1746185450237,-151.0,0.00019891,2]
[359617999,1746185450247,-203.934156,0.00019891,2]
[359618001,1746185450257,-203.934156,0.00019891,2]
[359618003,1746185450267,-151.0,0.00019891,2]
[359618005,1746185450277,-151.0,0.00019891,2]
[359618018,1746185450538,-151.0,0.00019891,2]
[359618019,1746185450554,-151.0,0.00019891,2]
[359618020,1746185450564,-151.0,0.00019891,2]
[359618021,1746185450573,-151.0,0.00019891,2]
[359618022,1746185450585,-151.0,0.00019891,2]
[359618023,1746185450595,-151.0,0.00019891,2]
[359618024,1746185450604,-425.162712,0.00019891,2]
[359618025,1746185450615,-425.162712,0.00019891,2]
[359618026,1746185450625,-12500.0,0.00019891,2]
[359618027,1746185450634,-12500.0,0.00019891,2]
[359618028,1746185450643,-243.0829256,0.00019892,2]
[359618029,1746185450653,-12500.0,0.000199,2]
[359618030,1746185450663,-12500.0,0.000199,2]
[359618031,1746185450673,-223.861338,0.000199,2]
[359618032,1746185450683,-223.861338,0.000199,2]
[359618034,1746185450692,-151.456468,0.000199,2]
[359618036,1746185450700,-298.963546,0.000199,2]
[359618038,1746185450709,-12500.0,0.000199,2]
[359618040,1746185450721,-187.701481,0.000199,2]
[359618042,1746185450733,-240.034319,0.000199,2]
[359618044,1746185450743,-167.53545799,0.000199,2]
[359618046,1746185450752,-406.208105,0.000199,2]
[359618048,1746185450763,-151.0,0.000199,2]
[359618050,1746185450772,-537.146011,0.000199,2]
[359618052,1746185450782,-537.146011,0.000199,2]
[359618054,1746185450791,-290.354684,0.000199,2]
[359618056,1746185450801,-290.354684,0.000199,2]
[359618058,1746185450810,-12500.0,0.000199,2]
[359618060,1746185450820,-151.0,0.000199,2]
[359618062,1746185450830,-151.0,0.000199,2]
[359618064,1746185450839,-211.55977163,0.000199,2]
[359618066,1746185450849,-420.335561,0.000199,2]
[359618068,1746185450859,-54868.98190497,0.000199,2]
[359618069,1746185450868,-151.0,0.000199,2]
[359618070,1746185450878,-151.0,0.000199,2]
[359618072,1746185450887,-151.0,0.000199,2]
[359618073,1746185450897,-1395.00907877,0.000199,2]
[359618075,1746185450907,-151.0,0.000199,2]